bitfinex-derivatives/quotes_BTCF0:USTF0_20250926
["timestamp","ask_amount","ask_price","bid_price","bid_amount"]
[1758894695442,0.51259094,109600.0,109590.0,0.1136933]
[1758894695952,0.51359094,109600.0,109590.0,0.02251]
[1758894696746,0.0911833,109590.0,109580.0,0.38431]
[1758894696952,0.1282533,109590.0,109580.0,0.02351]
[1758894697147,0.1282533,109590.0,109580.0,0.56674663]
[1758894697349,0.1143833,109590.0,109580.0,0.56674663]
[1758894698146,0.0232,109590.0,109580.0,0.56674663]
[1758894698343,0.1143833,109590.0,109580.0,0.56574663]
[1758894698746,0.1143833,109590.0,109580.0,0.11375503]
[1758894698747,0.1282533,109590.0,109580.0,0.11375503]
[1758894698942,0.1282533,109590.0,109580.0,0.20494663]
[1758894699145,0.1282533,109590.0,109580.0,0.20994663]
[1758894699352,0.1282533,109590.0,109580.0,0.57174663]
[1758894699846,0.1282533,109590.0,109580.0,0.48055503]
[1758894700048,0.88111926,109590.0,109580.0,0.006]
[1758894700253,2.31148625,109590.0,109580.0,0.006]
[1758894700451,1.91148625,109590.0,109580.0,0.006]
[1758894701272,2.31148625,109590.0,109580.0,0.006]
[1758894701448,0.1282783,109560.0,109550.0,0.38340364]
[1758894701848,0.1282783,109560.0,109550.0,0.474657]
[1758894702056,0.1282783,109560.0,109550.0,0.47456336]
[1758894702251,0.1282783,109560.0,109550.0,0.11376336]
[1758894702452,0.1282783,109560.0,109550.0,0.20497996]
[1758894702654,0.1282783,109560.0,109550.0,0.21097996]
[1758894702959,0.1282783,109560.0,109550.0,0.14276336]
[1758894703158,0.20100575,109560.0,109550.0,0.14276336]
[1758894703651,0.20100575,109560.0,109550.0,0.12025336]
[1758894703851,0.1282783,109560.0,109550.0,0.12025336]
[1758894704058,0.1282783,109560.0,109550.0,0.11976336]
[1758894704253,0.1282783,109560.0,109550.0,0.22197986]
[1758894704555,0.1144082,109560.0,109550.0,0.99554986]
[1758894704755,0.1144082,109560.0,109550.0,0.98277986]
[1758894705059,0.1282782,109560.0,109550.0,0.53076336]
[1758894705258,0.1282782,109560.0,109550.0,0.10425336]
[1758894705855,0.1282782,109560.0,109550.0,0.12676336]
[1758894706054,0.88114416,109560.0,109550.0,0.03551]
[1758894706260,0.88114416,109560.0,109550.0,0.013]
[1758894706462,0.4890782,109560.0,109550.0,0.013]
[1758894706853,0.56313354,109560.0,109550.0,0.013]
[1758894707256,0.20233354,109560.0,109550.0,0.1267266]
[1758894707455,0.20233354,109560.0,109550.0,0.87959256]
[1758894707661,0.18846354,109560.0,109550.0,0.98102091]
[1758894707862,0.09725534,109560.0,109550.0,0.98102091]
[1758894708154,0.16526354,109560.0,109550.0,0.98102091]
[1758894708355,0.1143998,109570.0,109560.0,0.02251]
[1758894708559,0.1143998,109570.0,109560.0,0.1254282]
[1758894708772,0.4751998,109570.0,109560.0,0.03422]
[1758894708948,0.4751998,109570.0,109560.0,0.11378835]
[1758894709153,0.1282698,109570.0,109560.0,0.20499655]
[1758894709355,0.01848263,109580.0,109570.0,0.1249398]
[1758894709660,0.13287413,109580.0,109570.0,0.39454]
[1758894709863,0.13287413,109580.0,109570.0,0.02251]
[1758894710156,0.17729033,109590.0,109570.0,0.47458002]
[1758894710352,0.20048663,109590.0,109580.0,0.1137015]
[1758894710557,0.56128663,109590.0,109580.0,0.02251]
[1758894710761,0.5847214,109590.0,109580.0,0.02251]
[1758894710959,0.5847214,109590.0,109580.0,0.11377169]
[1758894711157,0.1282678,109580.0,109570.0,0.02251]
[1758894711361,0.52033376,109580.0,109570.0,0.02251]
[1758894711560,0.1282678,109580.0,109570.0,0.02251]
[1758894711765,0.1292678,109580.0,109570.0,0.02251]
[1758894712250,0.1050702,109570.0,109560.0,1.35868]
[1758894712566,0.1282702,109570.0,109560.0,0.56578019]
[1758894712762,0.1282702,109570.0,109560.0,1.56326019]
[1758894712959,0.1060656,109580.0,109560.0,1.56326019]
[1758894713164,0.1153956,109580.0,109570.0,0.1137102]
[1758894713361,0.001,109580.0,109570.0,0.1249402]
[1758894713657,0.001,109580.0,109570.0,0.8857402]
[1758894713866,0.001,109580.0,109570.0,1.32883749]
[1758894714564,0.016,109580.0,109570.0,1.32883749]
[1758894714759,0.1071917,109580.0,109570.0,0.97700585]
[1758894714957,0.1061917,109580.0,109570.0,0.97700585]
[1758894715357,0.1293917,109580.0,109570.0,0.97700585]
[1758894715557,0.1293917,109580.0,109570.0,1.97156585]
[1758894715758,0.1293917,109580.0,109570.0,0.88580585]
[1758894715964,0.1442617,109580.0,109570.0,0.11377585]
[1758894716268,0.1442617,109580.0,109570.0,1.10781585]
[1758894716465,0.1442617,109580.0,109570.0,1.19901595]
[1758894716667,0.016,109580.0,109570.0,1.57104595]
[1758894716964,0.1071918,109580.0,109570.0,1.57104595]
[1758894717166,0.1071918,109580.0,109570.0,1.21024595]
[1758894717354,0.1071918,109580.0,109570.0,1.57104595]
[1758894717667,0.016,109580.0,109570.0,1.57104595]
[1758894718361,0.016,109580.0,109570.0,2.32287739]
[1758894718566,0.105044,109610.0,109600.0,0.1136852]
[1758894718770,0.1282323,109620.0,109610.0,0.1136768]
[1758894719263,0.1282323,109620.0,109600.0,0.38331]
[1758894719264,0.1282368,109610.0,109600.0,0.38331]
[1758894719469,0.1282368,109610.0,109600.0,1.37511]
[1758894719766,0.1442368,109610.0,109600.0,1.55751349]
[1758894720066,0.05507,109610.0,109600.0,1.55751349]
[1758894720266,0.018,109610.0,109600.0,1.55751349]
[1758894720564,0.018,109610.0,109600.0,2.74686656]
[1758894720973,0.018,109610.0,109600.0,3.80503512]
[1758894721267,0.018,109610.0,109600.0,2.40152512]
[1758894721463,0.018,109610.0,109600.0,3.39184512]
[1758894721664,0.018,109610.0,109600.0,3.32683349]
[1758894722262,0.016,109610.0,109600.0,3.32683349]
[1758894722466,0.016,109610.0,109600.0,2.33751349]
[1758894722667,0.016,109610.0,109600.0,3.32643349]
[1758894722870,0.1266985,109620.0,109610.0,0.0213]
[1758894723069,0.1266985,109620.0,109610.0,0.1124669]
[1758894723272,0.1266985,109620.0,109610.0,0.4732669]
[1758894723567,0.1266986,109620.0,109610.0,0.56449529]
[1758894723768,0.1266986,109620.0,109610.0,0.11252839]
[1758894723968,0.1266986,109620.0,109610.0,1.55233529]
[1758894724165,0.03554,109620.0,109610.0,1.55233529]
[1758894724464,0.03554,109620.0,109610.0,1.55433529]
[1758894724858,0.03554,109630.0,109620.0,0.1124586]
[1758894725058,0.50608907,109640.0,109630.0,0.1124503]
[1758894725265,0.14528907,109640.0,109630.0,0.1124503]
[1758894725468,0.14528907,109640.0,109630.0,0.0213]
[1758894725778,0.21741664,109640.0,109630.0,0.0213]
[1758894726064,0.1049901,109630.0,109620.0,1.00813]
[1758894726267,0.4882201,109630.0,109620.0,0.02177]
[1758894726472,0.4882201,109630.0,109620.0,1.09858174]
[1758894726672,0.4922201,109630.0,109620.0,1.09858174]
[1758894727061,0.0911586,109620.0,109610.0,0.1129328]
[1758894727264,0.1274286,109620.0,109610.0,1.0971328]
[1758894727475,0.1274286,109620.0,109610.0,1.18835696]
[1758894727774,0.1274286,109620.0,109610.0,0.11299006]
[1758894728273,0.1050069,109610.0,109600.0,1.4571452]
[1758894728472,0.1274369,109610.0,109600.0,1.0960652]
[1758894728673,0.1274369,109610.0,109600.0,0.09122839]
[1758894728866,0.1274369,109610.0,109600.0,0.1129452]
[1758894729171,0.1274341,109620.0,109610.0,0.1129369]
[1758894729475,0.1274286,109620.0,109610.0,0.1129369]
[1758894729769,0.5050028,109620.0,109610.0,0.0911668]
[1758894729967,0.03627,109620.0,109610.0,0.56497351]
[1758894730175,0.39707,109630.0,109620.0,0.1129284]
[1758894730468,0.55654654,109640.0,109620.0,0.1129284]
[1758894730674,0.03627,109630.0,109620.0,0.4737284]
[1758894730868,0.1274202,109630.0,109620.0,0.11299839]
[1758894731176,0.1274311,109620.0,109610.0,1.0958968]
[1758894731381,0.3608,109660.0,109650.0,0.035]
[1758894731672,0.02336227,109660.0,109650.0,0.1261336]
[1758894731865,0.01384,109680.0,109650.0,0.48715156]
[1758894732066,0.13294799,109680.0,109670.0,0.02177]
[1758894732270,0.03627,109680.0,109670.0,0.02177]
[1758894733276,0.1273786,109680.0,109670.0,0.11295679]
[1758894733870,0.4881786,109680.0,109670.0,0.11295679]
[1758894734073,0.8951786,109680.0,109670.0,0.09118679]
[1758894734476,0.03627,109660.0,109650.0,0.02177]
[1758894734776,0.75787,109660.0,109650.0,0.02423229]
[1758894734972,0.39707,109660.0,109650.0,0.02423229]
[1758894735172,0.39707,109660.0,109650.0,0.04600229]
[1758894735377,0.39707,109660.0,109650.0,0.11541077]
[1758894735677,0.39707,109660.0,109650.0,0.02423229]
[1758894735867,0.03627,109660.0,109650.0,0.49793549]
[1758894736071,0.03627,109660.0,109650.0,0.13713549]
[1758894736273,0.03627,109660.0,109650.0,0.49793549]
[1758894737076,0.39707,109660.0,109650.0,0.02723229]
[1758894737278,1.24002664,109660.0,109650.0,0.02723229]
[1758894737479,1.24002664,109660.0,109650.0,0.004]
[1758894737480,2.28926664,109660.0,109650.0,0.004]
[1758894738878,2.29226664,109660.0,109650.0,0.003]
[1758894739581,1.9404352,109660.0,109650.0,0.003]
[1758894739980,2.29226664,109660.0,109650.0,0.003]
[1758894740381,0.1274033,109650.0,109640.0,0.02423229]
[1758894740582,0.4882033,109650.0,109640.0,0.02423229]
[1758894740983,0.8882033,109650.0,109640.0,0.02423229]
[1758894741686,0.9012033,109650.0,109640.0,0.02423229]
[1758894741982,2.29959474,109650.0,109640.0,0.02423229]
[1758894742182,2.29959474,109650.0,109620.0,0.04846459]
[1758894742183,0.1274116,109640.0,109620.0,0.03230973]
[1758894742376,2.27716474,109650.0,109620.0,0.03230973]
[1758894742377,0.3768,109650.0,109640.0,0.01391]
[1758894742583,0.03843,109650.0,109640.0,0.02177]
[1758894742779,0.03843,109650.0,109640.0,0.15913133]
[1758894742780,0.28999,109650.0,109640.0,0.15913133]
[1758894743084,0.03843,109650.0,109640.0,0.41982117]
[1758894743284,0.05227,109650.0,109640.0,0.07023459]
[1758894743691,0.03843,109650.0,109640.0,0.16137619]
[1758894743884,0.03843,109650.0,109640.0,0.07023459]
[1758894744282,0.02643,109650.0,109640.0,0.07023459]
[1758894744478,0.02643,109650.0,109640.0,0.16137619]
[1758894744685,0.004,109650.0,109640.0,0.53608619]
[1758894744987,0.01,109650.0,109640.0,1.37912105]
[1758894745182,0.01,109650.0,109640.0,1.39527592]
[1758894745382,0.007,109650.0,109640.0,1.39527592]
[1758894746395,0.007,109650.0,109640.0,1.04359349]
[1758894746601,0.007,109650.0,109640.0,1.39542493]
[1758894747195,1.09552,109680.0,109670.0,0.03568]
[1758894747508,1.13179,109680.0,109670.0,0.05417417]
[1758894748192,1.13179,109680.0,109670.0,0.07037625]
[1758894748392,1.13179,109680.0,109670.0,0.10278768]
[1758894748995,1.11795,109680.0,109670.0,0.10978768]
[1758894749194,1.11795,109680.0,109670.0,0.07737625]
[1758894749405,1.11995,109680.0,109670.0,0.10978718]
[1758894749604,1.09752,109680.0,109670.0,0.12369718]
[1758894749798,0.02443,109680.0,109670.0,0.4755274]
[1758894750002,0.02443,109680.0,109670.0,0.44311769]
[1758894750301,0.03827,109680.0,109670.0,0.05560625]
[1758894750502,0.4901783,109680.0,109670.0,0.05560625]
[1758894750694,0.4901783,109680.0,109670.0,0.007]
[1758894750904,1.24200974,109680.0,109670.0,0.03940739]
[1758894751101,0.8901783,109680.0,109670.0,0.03940739]
[1758894751499,0.03765,109680.0,109670.0,0.06140739]
[1758894751805,0.4895585,109680.0,109670.0,0.03940739]
[1758894752301,0.8895585,109680.0,109670.0,0.03940739]
[1758894753307,1.9919585,109680.0,109670.0,0.03940739]
[1758894753602,0.3608,109690.0,109670.0,0.16532459]
[1758894753802,0.3608,109710.0,109700.0,0.1258923]
[1758894753998,0.01322,109730.0,109720.0,0.022]
[1758894753999,0.03523,109730.0,109720.0,0.022]
[1758894754202,0.02201,109710.0,109700.0,0.07060625]
[1758894754401,0.02201,109720.0,109710.0,0.0348]
[1758894754608,0.02201,109720.0,109710.0,0.52622987]
[1758894754806,0.01322,109730.0,109710.0,1.84514587]
[1758894755002,0.03523,109730.0,109720.0,0.05433951]
[1758894755396,0.5262987,109730.0,109720.0,0.03233951]
[1758894755610,0.5352987,109730.0,109720.0,0.03233951]
[1758894755811,0.8960987,109730.0,109720.0,0.03233951]
[1758894756212,0.1042993,109720.0,109710.0,1.44233951]
[1758894756413,0.1263176,109710.0,109700.0,0.03233951]
[1758894756598,0.4871176,109710.0,109690.0,0.08085394]
[1758894756802,0.39603,109700.0,109690.0,0.10285394]
[1758894756998,0.39603,109700.0,109690.0,1.51285394]
[1758894757205,0.02201,109700.0,109690.0,1.51285394]
[1758894757412,0.39603,109700.0,109690.0,1.51285394]
[1758894757708,0.02201,109700.0,109690.0,0.46748538]
[1758894758006,0.39603,109700.0,109690.0,0.03233951]
[1758894758214,0.4871257,109700.0,109690.0,0.10285394]
[1758894758409,0.4871257,109700.0,109690.0,0.03233951]
[1758894759112,1.6402457,109700.0,109690.0,0.004]
[1758894759411,2.0402457,109700.0,109690.0,0.004]
[1758894759710,2.37391485,109700.0,109680.0,0.03233951]
[1758894760010,2.37391485,109700.0,109670.0,0.04851443]
[1758894760011,0.12634,109680.0,109670.0,0.08085394]
[1758894760309,0.017,109700.0,109690.0,0.125901]
[1758894760608,0.017,109700.0,109690.0,0.20675494]
[1758894760905,0.017,109700.0,109690.0,0.96891092]
[1758894761113,0.017,109700.0,109690.0,0.61707948]
[1758894761501,0.017,109700.0,109690.0,0.68184795]
[1758894761819,0.02501,109700.0,109690.0,0.21707948]
[1758894762105,0.003,109700.0,109690.0,0.63367939]
[1758894762305,0.003,109700.0,109690.0,0.57787948]
[1758894762509,0.03823,109700.0,109690.0,0.58107948]
[1758894762710,0.03823,109700.0,109690.0,0.59387948]
[1758894762711,0.003,109700.0,109690.0,0.59387948]
[1758894762909,0.37402,109710.0,109690.0,0.59387948]
[1758894763108,0.37402,109710.0,109700.0,0.03231854]
[1758894763109,0.4871173,109710.0,109700.0,0.03231854]
[1758894763299,0.39603,109710.0,109700.0,0.03231854]
[1758894763706,0.38281,109710.0,109700.0,0.08327171]
[1758894763908,0.3608,109710.0,109700.0,0.08327171]
[1758894764098,0.39603,109710.0,109700.0,0.07047171]
[1758894764298,0.38281,109710.0,109700.0,0.07047171]
[1758894764504,0.39603,109710.0,109700.0,0.07047171]
[1758894764699,0.39603,109710.0,109700.0,0.022]
[1758894765100,0.38781,109710.0,109700.0,0.022]
[1758894765304,0.02901,109710.0,109700.0,0.4738956]
[1758894765504,0.04223,109710.0,109700.0,0.3828]
[1758894765809,0.03523,109700.0,109690.0,0.39310454]
[1758894766109,0.03523,109700.0,109690.0,0.3608]
[1758894766316,0.03523,109700.0,109680.0,0.03230454]
[1758894766317,0.03523,109690.0,109680.0,0.03230454]
[1758894766514,0.39603,109690.0,109670.0,0.53269675]
[1758894766707,0.39603,109690.0,109670.0,0.48422504]
[1758894767013,0.39603,109690.0,109670.0,0.57538689]
[1758894767212,0.39603,109690.0,109680.0,0.022]
[1758894767609,0.39603,109690.0,109670.0,0.48422504]
[1758894768012,0.39603,109690.0,109670.0,0.57539936]
[1758894768719,0.39603,109690.0,109680.0,0.1131101]
[1758894769017,0.39603,109690.0,109670.0,0.03230454]
[1758894769018,0.1263401,109680.0,109670.0,0.03230454]
[1758894769217,0.1263478,109670.0,109660.0,0.03230454]
[1758894769416,0.1263478,109670.0,109650.0,1.03230454]
[1758894769623,0.01322,109660.0,109650.0,1.0]
[1758894770510,0.02201,109660.0,109650.0,1.0]
[1758894770824,0.01501,109660.0,109650.0,1.0]
[1758894771226,0.02201,109670.0,109660.0,0.022]
[1758894771520,0.02201,109670.0,109660.0,0.38663144]
[1758894771722,0.02201,109670.0,109660.0,0.0348]
[1758894772024,0.02201,109670.0,109660.0,0.022]
[1758894772221,0.4651293,109680.0,109660.0,0.1259244]
[1758894772222,0.37402,109680.0,109660.0,0.1259244]
[1758894772516,0.01322,109680.0,109660.0,0.96205479]
[1758894772719,0.02201,109670.0,109660.0,0.61022525]
[1758894773021,0.4651208,109690.0,109660.0,0.61022525]
[1758894773222,0.02401,109670.0,109660.0,0.51909965]
[1758894773516,0.02401,109670.0,109660.0,0.50629965]
[1758894773720,0.02401,109670.0,109660.0,0.41510454]
[1758894773920,0.1283473,109670.0,109660.0,0.03230454]
[1758894774121,0.1283473,109670.0,109660.0,0.03330454]
[1758894774422,0.5283473,109670.0,109660.0,0.03330454]
[1758894775419,1.29137023,109670.0,109660.0,0.03330454]
[1758894775724,2.50949023,109670.0,109660.0,0.001]
[1758894775915,0.1043456,109660.0,109650.0,1.0]
[1758894776218,0.4651456,109660.0,109650.0,1.0]
[1758894776724,0.8651456,109660.0,109650.0,1.0]
[1758894777022,0.8821456,109660.0,109650.0,1.0]
[1758894777224,1.28836853,109660.0,109650.0,1.0]
[1758894778219,0.8841456,109660.0,109650.0,1.0]
[1758894778424,2.0942656,109660.0,109650.0,1.0]
[1758894779916,0.4841456,109660.0,109650.0,1.0]
[1758894780118,2.0939456,109660.0,109650.0,1.0]
[1758894780315,2.49816853,109660.0,109650.0,1.0]
[1758894780514,2.50695853,109660.0,109650.0,0.65542494]
[1758894780721,2.50695853,109660.0,109650.0,0.48608824]
[1758894781024,2.86775853,109660.0,109650.0,0.12052784]
[1758894781220,0.0911327,109650.0,109640.0,0.0128]
[1758894781519,0.85615563,109650.0,109640.0,0.0128]
[1758894781722,0.4519327,109650.0,109640.0,0.0128]
[1758894782320,1.25615563,109650.0,109640.0,0.01114503]
[1758894782821,0.85615563,109650.0,109640.0,0.01114503]
[1758894783027,1.6528127,109650.0,109640.0,0.03400503]
[1758894783224,1.6610527,109650.0,109640.0,0.03400503]
[1758894783920,0.3818,109650.0,109640.0,0.43400503]
[1758894784226,0.3608,109670.0,109660.0,0.01295]
[1758894784421,0.4519127,109680.0,109670.0,0.03581]
[1758894784621,0.3608,109680.0,109670.0,0.03581]
[1758894784820,1.67071533,109690.0,109680.0,0.03581]
[1758894785216,1.55832,109690.0,109680.0,0.03581]
[1758894785421,1.6494193,109690.0,109680.0,0.03581]
[1758894786135,0.4518993,109690.0,109680.0,0.03581]
[1758894786421,2.45280223,109690.0,109680.0,0.01295]
[1758894786724,2.45280223,109690.0,109680.0,0.01595]
[1758894787227,2.45480223,109690.0,109680.0,0.01295]
[1758894787427,2.45480223,109690.0,109680.0,0.02195]
[1758894787728,0.4538997,109690.0,109680.0,0.04439]
[1758894787927,1.6452197,109690.0,109680.0,0.04439]
[1758894789022,1.6502197,109690.0,109680.0,0.03539]
[1758894789723,0.005,109690.0,109680.0,0.52656016]
[1758894790031,0.3608,109700.0,109690.0,0.1262294]
[1758894790220,1.50660367,109710.0,109690.0,0.1262294]
[1758894790416,0.38212057,109710.0,109700.0,0.03513]
[1758894790622,0.38212057,109710.0,109700.0,0.1262211]
[1758894790623,1.57424057,109710.0,109700.0,0.1262211]
[1758894790826,1.66532337,109710.0,109700.0,0.03513]
[1758894791732,1.66832337,109710.0,109700.0,0.03513]
[1758894793126,1.66832337,109710.0,109700.0,0.03613]
[1758894794119,1.66108337,109710.0,109700.0,0.03613]
[1758894794320,2.0643063,109710.0,109700.0,0.01369]
[1758894795230,2.0643063,109710.0,109700.0,0.03613]
[1758894795733,2.0643063,109710.0,109700.0,0.01369]
[1758894795734,2.4643063,109710.0,109700.0,0.01369]
[1758894796430,2.4643063,109710.0,109700.0,0.03613]
[1758894796431,0.02438962,109710.0,109700.0,0.03613]
[1758894796633,0.02438962,109710.0,109700.0,0.93144403]
[1758894796835,1.21304,109730.0,109720.0,0.03513]
[1758894797028,1.21304,109730.0,109720.0,0.43935293]
[1758894797329,0.00892902,109750.0,109740.0,0.01269]
[1758894797533,0.51798271,109760.0,109750.0,0.01269]
[1758894797723,1.73678243,109760.0,109750.0,0.01269]
[1758894798335,1.3325595,109760.0,109750.0,0.01269]
[1758894798531,2.0541595,109760.0,109750.0,0.01269]
[1758894798835,2.45838243,109760.0,109750.0,0.01269]
[1758894799039,2.0541595,109760.0,109750.0,0.01269]
[1758894799331,2.45838243,109760.0,109750.0,0.01269]
[1758894799541,2.46138243,109760.0,109750.0,0.01269]
[1758894799726,2.47036218,109760.0,109750.0,0.01269]
[1758894799923,2.06613925,109760.0,109750.0,0.01269]
[1758894800134,2.04660664,109760.0,109750.0,0.01269]
[1758894800334,2.04200664,109760.0,109750.0,0.01269]
[1758894800633,2.14605154,109760.0,109750.0,0.01269]
[1758894800836,2.55027447,109760.0,109750.0,0.01269]
[1758894801534,2.94727447,109760.0,109750.0,0.01269]
[1758894802135,2.54305154,109760.0,109750.0,0.01269]
[1758894802737,2.94727447,109760.0,109750.0,0.01269]
[1758894803439,2.54305154,109760.0,109750.0,0.01269]
[1758894803633,0.0910495,109750.0,109740.0,0.01269]
[1758894803828,0.87878953,109750.0,109740.0,0.01269]
[1758894804037,1.27878953,109750.0,109740.0,0.01269]
[1758894804841,1.27878953,109750.0,109740.0,0.02628286]
[1758894805235,1.27978953,109750.0,109740.0,0.02628286]
[1758894805429,1.28978953,109750.0,109740.0,0.02628286]
[1758894806940,0.0910654,109730.0,109720.0,0.01269]
[1758894807135,2.41996833,109730.0,109720.0,0.00414445]
[1758894808044,2.41508833,109730.0,109720.0,0.00414445]
[1758894808244,2.41508833,109730.0,109720.0,0.00614445]
[1758894808739,2.43208833,109730.0,109720.0,0.00614445]
[1758894808944,2.83208833,109730.0,109720.0,0.00614445]
[1758894809348,2.83208833,109730.0,109720.0,0.00414445]
[1758894809349,2.83308833,109730.0,109720.0,0.00414445]
[1758894809540,2.85576472,109730.0,109720.0,0.00414445]
[1758894809740,1.25756472,109730.0,109720.0,0.00414445]
[1758894810053,1.23488833,109730.0,109720.0,0.00414445]
[1758894810232,2.0265854,109730.0,109720.0,0.00414445]
[1758894810438,2.0125854,109730.0,109720.0,0.02658445]
[1758894810643,0.3648,109730.0,109720.0,0.02658445]
[1758894810943,1.6538254,109730.0,109720.0,0.02658445]
[1758894811245,1.6508254,109730.0,109720.0,0.03758445]
[1758894811837,2.05304833,109730.0,109720.0,0.01514445]
[1758894812039,2.0757426,109730.0,109720.0,0.01514445]
[1758894812640,1.66907967,109730.0,109720.0,0.03628445]
[1758894812841,1.66733694,109730.0,109720.0,0.03628445]
[1758894813046,1.2830254,109730.0,109720.0,0.03628445]
[1758894813246,1.3057579,109730.0,109720.0,0.03628445]
[1758894814339,0.0237325,109730.0,109720.0,0.84050738]
[1758894814647,0.001,109730.0,109720.0,1.38351771]
[1758894814951,1.18788,109730.0,109720.0,1.38351771]
[1758894815153,1.18788,109730.0,109720.0,0.88822138]
[1758894815653,1.18788,109730.0,109720.0,0.97929508]
[1758894815851,1.18788,109730.0,109720.0,2.38929508]
[1758894816356,1.18788,109730.0,109720.0,2.29822138]
[1758894816542,1.2789455,109730.0,109720.0,2.29822138]
[1758894816744,1.2789455,109730.0,109720.0,1.80708445]
[1758894817443,1.6397455,109730.0,109720.0,1.44628445]
[1758894817644,1.6397455,109730.0,109720.0,0.03628445]
[1758894818454,1.2789449,109730.0,109720.0,0.03628445]
[1758894818746,0.001,109730.0,109720.0,0.03628445]
[1758894818944,0.001,109730.0,109720.0,0.90153623]
[1758894819151,1.18028,109730.0,109720.0,0.81046303]
[1758894819349,1.2713456,109730.0,109720.0,0.44966303]
[1758894819654,1.6321456,109730.0,109720.0,0.04966303]
[1758894819946,1.18028,109730.0,109720.0,0.50153693]
[1758894820552,1.2713456,109730.0,109720.0,0.50153693]
[1758894820748,1.2713456,109730.0,109720.0,0.04966303]
[1758894820749,0.0920656,109730.0,109720.0,0.04966303]
[1758894820952,1.6289456,109730.0,109720.0,0.049671]
[1758894821151,1.2681456,109730.0,109720.0,0.049671]
[1758894821355,1.6289456,109730.0,109720.0,0.049671]
[1758894821554,0.3618,109730.0,109720.0,0.049671]
[1758894821853,1.2369056,109730.0,109720.0,0.049671]
[1758894822044,1.5977056,109730.0,109720.0,0.049671]
[1758894822749,1.5977056,109730.0,109720.0,0.03628445]
[1758894823150,1.62049048,109730.0,109720.0,0.03628445]
[1758894823450,2.42471341,109730.0,109720.0,0.01514445]
[1758894824947,2.02049048,109730.0,109720.0,0.01514445]
[1758894825456,2.42471341,109730.0,109720.0,0.01514445]
[1758894827463,2.02049048,109730.0,109720.0,0.01514445]
[1758894827758,2.44585877,109730.0,109720.0,0.01514445]
[1758894828454,2.04163584,109730.0,109720.0,0.01514445]
[1758894828655,0.47565038,109730.0,109720.0,0.03628445]
[1758894828852,0.38458488,109730.0,109720.0,0.43628445]
[1758894829052,1.53152,109730.0,109720.0,0.43628445]
[1758894829360,1.28407956,109730.0,109720.0,0.43628445]
[1758894829561,1.2617853,109730.0,109720.0,0.43628445]
[1758894829754,1.2617853,109730.0,109720.0,0.03628445]
[1758894829959,2.04910395,109730.0,109720.0,0.01514445]
[1758894830753,2.04642395,109730.0,109720.0,0.01514445]
[1758894832361,1.64220102,109730.0,109720.0,0.01514445]
[1758894832567,2.04642395,109730.0,109720.0,0.01514445]
[1758894833160,0.47516102,109730.0,109720.0,0.03628445]
[1758894833568,1.63452102,109730.0,109720.0,0.43628445]
[1758894834158,1.63452102,109730.0,109720.0,0.03628445]
[1758894836861,1.63452102,109730.0,109720.0,0.01514445]
[1758894837371,1.63452102,109730.0,109720.0,0.03628445]
[1758894837566,0.38409572,109730.0,109720.0,0.43628445]
[1758894837771,1.62712112,109730.0,109720.0,0.43628445]
[1758894838268,0.47516112,109730.0,109720.0,0.43628445]
[1758894838566,1.62556112,109730.0,109720.0,0.43628445]
[1758894839867,1.62156112,109730.0,109720.0,0.43628445]
[1758894841873,1.62056112,109730.0,109720.0,0.43628445]
[1758894842575,1.62056112,109730.0,109720.0,0.52735885]
[1758894842765,1.62056112,109730.0,109720.0,0.43628445]
[1758894843168,1.52949572,109730.0,109720.0,0.52735885]
[1758894843472,1.62056182,109730.0,109720.0,0.43628445]
[1758894843667,1.62156182,109730.0,109720.0,0.43628445]
[1758894844073,1.62156182,109730.0,109720.0,0.52735875]
[1758894844571,1.5992661,109730.0,109720.0,0.52735875]
[1758894844772,1.5992661,109730.0,109720.0,0.43628445]
[1758894845370,1.5982661,109730.0,109720.0,0.43628445]
[1758894846068,1.5855461,109730.0,109720.0,0.43628445]
[1758894846267,0.4518653,109740.0,109730.0,0.01265]
[1758894846463,0.0223175,109740.0,109730.0,0.126266]
[1758894846668,1.2462152,109740.0,109730.0,0.126266]
[1758894846966,1.2238977,109740.0,109730.0,0.126266]
[1758894847670,0.53233604,109760.0,109750.0,0.0352]
[1758894847874,0.53233604,109760.0,109750.0,0.1262492]
[1758894847875,0.54566262,109760.0,109750.0,0.1262492]
[1758894848166,0.09382172,109760.0,109750.0,0.1262492]
[1758894848367,0.47446063,109770.0,109760.0,0.0352]
[1758894848559,1.62711544,109770.0,109760.0,0.0352]
[1758894848759,1.63612176,109770.0,109760.0,0.0352]
[1758894849469,1.63536176,109770.0,109760.0,0.0352]
[1758894849774,0.50576176,109770.0,109760.0,0.0352]
[1758894850072,1.63288176,109770.0,109760.0,0.0352]
[1758894850367,1.70703574,109770.0,109760.0,0.0352]
[1758894850666,0.59191574,109770.0,109760.0,0.0352]
[1758894850867,1.16002473,109770.0,109760.0,0.4870411]
[1758894851067,0.12565753,109770.0,109760.0,0.0352]
[1758894851268,1.25305753,109770.0,109760.0,0.0352]
[1758894852472,1.61385753,109770.0,109760.0,0.0352]
[1758894854671,1.61249753,109770.0,109760.0,0.0352]
[1758894856877,1.61249753,109770.0,109760.0,0.1262406]
[1758894857377,1.61249753,109770.0,109760.0,0.0352]
[1758894858376,1.61081796,109770.0,109760.0,0.0352]
[1758894858776,0.48677796,109770.0,109760.0,0.0352]
[1758894858980,1.59629796,109770.0,109760.0,0.0352]
[1758894861670,1.59629796,109770.0,109760.0,0.1262405]
[1758894862378,1.59629796,109770.0,109760.0,0.0352]
[1758894862379,1.23549796,109770.0,109760.0,0.0352]
[1758894864770,1.59629796,109770.0,109760.0,0.01265]
[1758894865679,1.59629796,109770.0,109760.0,0.0352]
[1758894867780,1.58101796,109770.0,109760.0,0.0352]
[1758894868484,0.48677796,109770.0,109760.0,0.0352]
[1758894868881,1.57701796,109770.0,109760.0,0.0352]
[1758894869075,1.57701796,109770.0,109760.0,0.01265]
[1758894869377,0.48677796,109770.0,109760.0,0.01265]
[1758894869581,1.57645796,109770.0,109760.0,0.01265]
[1758894870879,2.29812097,109770.0,109760.0,0.01265]
[1758894871184,2.32043746,109770.0,109760.0,0.01265]
[1758894871975,2.2994923,109770.0,109760.0,0.01265]
[1758894872878,2.2994923,109770.0,109760.0,1e-07]
[1758894875384,2.33203163,109770.0,109760.0,1e-07]
[1758894876780,2.35354308,109770.0,109760.0,1e-07]
[1758894877779,0.86386308,109770.0,109760.0,1e-07]
[1758894878078,1.90544375,109770.0,109760.0,1e-07]